bitfinex/quotes_SOLUSD_20220130
["timestamp","ask_amount","ask_price","bid_price","bid_amount"]
[1643558430345,13.15,95.268,95.211,0.25]
[1643558430742,13.15,95.268,95.22,15.753]
[1643558430943,13.15,95.268,95.211,0.25]
[1643558431946,13.15,95.268,95.22,6.0]
[1643558432345,13.15,95.268,95.221,0.25]
[1643558433446,13.15,95.268,95.212,0.25]
[1643558434851,1.44839037,95.302,95.212,0.25]
[1643558435054,1.44839037,95.304,95.212,0.25]
[1643558435252,0.25,95.301,95.212,0.25]
[1643558435451,0.25,95.301,95.22,21.753]
[1643558435853,0.25,95.301,95.221,0.25]
[1643558436253,41.28192515,95.303,95.221,0.25]
[1643558436454,0.25,95.302,95.221,0.25]
[1643558436953,105.15,95.302,95.213,0.25]
[1643558437359,0.25,95.302,95.213,0.25]
[1643558437755,0.25,95.302,95.22,15.753]
[1643558437955,0.25,95.302,95.213,0.25]
[1643558437956,0.25,95.302,95.212,6.0]
[1643558438157,1.44839037,95.301,95.212,6.0]
[1643558438357,1.44839037,95.298,95.212,6.0]
[1643558438754,0.25,95.297,95.212,6.0]
[1643558439358,0.25,95.297,95.213,0.25]
[1643558439557,0.25,95.297,95.212,6.0]
[1643558439759,0.25,95.297,95.21,15.755]
[1643558439958,26.462359,95.296,95.21,15.755]
[1643558440159,1.44839037,95.295,95.21,15.755]
[1643558440359,36.983378,95.295,95.21,15.755]
[1643558440660,36.983378,95.295,95.202,47.6675]
[1643558440661,2.95669142,95.294,95.202,47.6675]
[1643558440859,15.756,95.29,95.202,47.6675]
[1643558441061,15.756,95.29,95.203,0.25]
[1643558442481,0.25,95.289,95.21,15.756]
[1643558442983,0.25,95.289,95.211,0.25]
[1643558443181,15.758,95.28,95.211,0.25]
[1643558443381,0.25,95.279,95.211,0.25]
[1643558443782,0.25,95.279,95.203,0.25]
[1643558443982,0.25,95.279,95.202,47.6675]
[1643558444784,0.25,95.285,95.202,47.6675]
[1643558444983,1.69839037,95.285,95.202,47.6675]
[1643558445184,1.44839037,95.285,95.202,47.6675]
[1643558445384,0.25,95.284,95.203,0.25]
[1643558445585,15.758,95.28,95.203,0.25]
[1643558445885,0.25,95.279,95.203,0.25]
[1643558446889,0.25,95.279,95.21,15.755]
[1643558447287,1.44839037,95.287,95.211,0.25]
[1643558448288,1.44839037,95.288,95.203,0.25]
[1643558449089,15.757,95.28,95.203,0.25]
[1643558449293,15.757,95.28,95.203,2.53839842]
[1643558449689,15.757,95.28,95.203,2.28839842]
[1643558449890,15.757,95.28,95.202,47.6675]
[1643558451091,17.20439037,95.29,95.203,0.25]
[1643558451294,15.756,95.29,95.203,0.25]
[1643558451492,15.756,95.29,95.21,15.755]
[1643558451892,15.756,95.29,95.211,0.25]
[1643558452292,104.9,95.299,95.211,0.25]
[1643558452293,15.757,95.28,95.211,0.25]
[1643558452892,15.757,95.28,95.203,0.25]
[1643558454094,0.25,95.289,95.21,15.756]
[1643558454291,0.25,95.289,95.211,0.25]
[1643558454292,1.44839037,95.288,95.211,0.25]
[1643558454695,0.25,95.287,95.211,0.25]
[1643558455193,15.757,95.28,95.211,0.25]
[1643558455392,1.69839037,95.287,95.211,0.25]
[1643558455593,1.69839037,95.287,95.203,0.25]
[1643558455794,1.69839037,95.287,95.212,6.0]
[1643558455994,0.25,95.287,95.212,6.0]
[1643558456193,0.25,95.287,95.213,0.25]
[1643558456394,1.44839037,95.285,95.213,0.25]
[1643558456797,0.25,95.284,95.213,0.25]
[1643558457197,1.44839037,95.283,95.213,0.25]
[1643558457395,0.25,95.282,95.213,0.25]
[1643558458095,15.757,95.28,95.213,0.25]
[1643558458295,0.25,95.279,95.213,0.25]
[1643558459096,1.44839037,95.279,95.213,0.25]
[1643558459496,1.44839037,95.279,95.203,0.25]
[1643558459702,1.44839037,95.278,95.203,0.25]
[1643558459897,1.44839037,95.28,95.21,15.756]
[1643558460099,1.44839037,95.28,95.203,0.25]
[1643558460100,11.29,95.278,95.203,0.25]
[1643558460297,1.44839037,95.274,95.203,0.25]
[1643558460498,42.59365318,95.267,95.203,0.25]
[1643558460799,42.59365318,95.267,95.202,47.6675]
[1643558460800,44.04204355,95.267,95.202,47.6675]
[1643558460997,1.44839037,95.266,95.202,47.6675]
[1643558461198,1.69839037,95.266,95.177,1.44038839]
[1643558461397,1.44839037,95.264,95.187,6.0]
[1643558461598,1.44839037,95.265,95.185,6.0]
[1643558461797,15.761,95.26,95.186,24.5127]
[1643558461997,15.761,95.26,95.186,30.5127]
[1643558462201,15.761,95.26,95.19,6.0]
[1643558462498,15.761,95.26,95.196,6.0]
[1643558462699,1.44839037,95.265,95.196,6.0]
[1643558463299,1.44839037,95.265,95.197,0.25]
[1643558465100,15.761,95.26,95.191,0.25]
[1643558465300,15.761,95.26,95.187,0.25]
[1643558465502,0.25,95.259,95.187,0.25]
[1643558465702,0.25,95.259,95.186,24.5127]
[1643558465902,36.886816,95.258,95.174,1.44038839]
[1643558466102,15.14,95.25,95.174,1.44038839]
[1643558466302,1.44839037,95.239,95.152,1.44038839]
[1643558466503,15.766,95.23,95.15,17.20638839]
[1643558466806,0.25,95.229,95.15,15.766]
[1643558467001,0.25,95.229,95.156,112.9]
[1643558467602,0.25,95.229,95.16,15.764]
[1643558467804,15.766,95.23,95.161,0.25]
[1643558468002,0.25,95.229,95.161,0.25]
[1643558469005,0.25,95.237,95.16,15.764]
[1643558469304,0.25,95.237,95.161,0.25]
[1643558469506,0.25,95.237,95.16,15.764]
[1643558469708,105.15,95.237,95.16,15.764]
[1643558470106,105.15,95.237,95.161,23.8932]
[1643558470306,15.765,95.23,95.161,23.8932]
[1643558471106,15.765,95.23,95.145,22.9983]
[1643558471305,129.7204,95.237,95.146,0.25]
[1643558471507,129.7204,95.237,95.16,15.764]
[1643558471707,24.8204,95.237,95.16,15.764]
[1643558471907,24.8204,95.237,95.161,0.25]
[1643558472108,0.25,95.236,95.161,0.25]
[1643558472310,0.25,95.236,95.161,24.9294]
[1643558472910,15.766,95.23,95.161,24.9294]
[1643558473310,0.25,95.229,95.161,24.9294]
[1643558474411,105.15,95.236,95.161,24.9294]
[1643558474611,0.25,95.236,95.161,24.9294]
[1643558475038,15.767,95.23,95.161,24.9294]
[1643558475539,0.25,95.229,95.161,24.9294]
[1643558477940,0.25,95.237,95.161,24.9294]
[1643558478941,0.25,95.237,95.161,24.6794]
[1643558479141,41.38556591,95.238,95.162,0.25]
[1643558480140,41.38556591,95.238,95.17,15.763]
[1643558480341,41.38556591,95.238,95.171,6.25]
[1643558480542,0.25,95.237,95.171,0.179229]
[1643558480942,0.25,95.237,95.171,6.179229]
[1643558481142,15.763,95.25,95.171,6.179229]
[1643558481343,1.44839037,95.269,95.18,15.761]
[1643558481543,104.9,95.272,95.19,6.0]
[1643558481843,104.9,95.272,95.191,22.5182]
[1643558482243,38.21140286,95.271,95.192,0.25]
[1643558482642,0.25,95.27,95.192,0.25]
[1643558483043,16.009,95.27,95.192,0.25]
[1643558483442,104.9,95.269,95.191,22.5182]
[1643558483842,0.25,95.268,95.191,22.5182]
[1643558484141,15.76,95.26,95.191,22.5182]
[1643558484342,0.25,95.259,95.191,22.5182]
[1643558485144,0.25,95.259,95.192,0.25]
[1643558485741,104.9,95.269,95.192,0.25]
[1643558487147,0.25,95.268,95.192,0.25]
[1643558487346,1.44839037,95.265,95.192,0.25]
[1643558487544,104.9,95.264,95.182,0.25]
[1643558487748,105.15,95.264,95.182,0.25]
[1643558487945,106.59839037,95.264,95.182,0.25]
[1643558488147,104.9,95.262,95.171,6.0]
[1643558488347,0.25,95.261,95.172,0.25]
[1643558488546,15.76,95.26,95.172,0.25]
[1643558488749,15.76,95.26,95.172,23.9856]
[1643558488946,105.15,95.259,95.172,23.9856]
[1643558489146,104.9,95.259,95.172,23.9856]
[1643558489347,0.25,95.258,95.172,23.9856]
[1643558489848,15.762,95.25,95.172,23.9856]
[1643558490251,0.25,95.249,95.172,23.9856]
[1643558491350,104.9,95.259,95.172,23.9856]
[1643558491351,1.44839037,95.252,95.172,23.9856]
[1643558491650,36.31447685,95.239,95.172,23.9856]
[1643558491850,0.25,95.238,95.172,23.9856]
[1643558494452,0.25,95.238,95.172,23.7356]
[1643558494651,0.25,95.238,95.18,15.761]
[1643558494852,36.31447685,95.239,95.18,15.761]
[1643558495254,0.25,95.238,95.18,15.761]
[1643558495552,36.31447685,95.239,95.18,15.761]
[1643558495752,36.31447685,95.239,95.181,0.25]
[1643558495951,0.25,95.238,95.181,0.25]
[1643558496550,0.25,95.238,95.173,0.25]
[1643558496951,36.31447685,95.239,95.173,0.25]
[1643558497353,0.25,95.238,95.172,23.7356]
[1643558498153,9.53,95.238,95.172,23.7356]
[1643558498352,9.53,95.238,95.145,115.24038839]
[1643558498553,33.6165,95.238,95.152,23.2411]
[1643558498754,33.6165,95.238,95.152,23.4911]
[1643558498956,15.765,95.23,95.152,23.4911]
[1643558499354,0.25,95.229,95.152,23.4911]
[1643558499954,15.767,95.22,95.152,23.4911]
[1643558500356,0.25,95.219,95.152,23.4911]
[1643558502356,15.768,95.21,95.152,0.25]
[1643558502556,45.15150141,95.209,95.152,0.25]
[1643558502757,45.40150141,95.209,95.145,113.8]
[1643558502957,45.40150141,95.209,95.111,46.4536]
[1643558502958,45.40150141,95.209,95.128,1.44038839]
[1643558503159,104.9,95.208,95.128,1.44038839]
[1643558503355,104.9,95.208,95.129,1.44038839]
[1643558503356,0.25,95.207,95.129,1.44038839]
[1643558503556,15.77,95.2,95.122,6.0]
[1643558503957,0.25,95.199,95.121,6.0]
[1643558504158,0.25,95.199,95.128,6.0]
[1643558504458,0.25,95.199,95.129,0.25]
[1643558504858,0.25,95.199,95.132,6.0]
[1643558505358,0.25,95.205,95.133,0.25]
[1643558505564,15.771,95.19,95.133,0.25]
[1643558505763,0.25,95.189,95.133,0.25]
[1643558506660,0.25,95.189,95.132,6.0]
[1643558507764,0.25,95.189,95.133,0.25]
[1643558508370,0.25,95.199,95.133,0.25]
[1643558508567,0.25,95.199,95.133,24.2276]
[1643558509489,15.773,95.19,95.133,24.2276]
[1643558511290,0.25,95.189,95.133,24.2276]
[1643558511690,45.11155801,95.179,95.133,24.2276]
[1643558515996,104.9,95.199,95.133,24.2276]
[1643558516193,104.9,95.199,95.143,6.0]
[1643558516493,0.25,95.198,95.144,0.25]
[1643558516693,0.25,95.198,95.143,6.0]
[1643558516893,0.25,95.198,95.133,23.9776]
[1643558517094,35.84950699,95.198,95.133,23.9776]
[1643558518094,35.84950699,95.198,95.134,0.25]
[1643558518295,35.84950699,95.198,95.143,6.0]
[1643558518697,35.84950699,95.198,95.144,0.25]
[1643558519098,35.84950699,95.198,95.143,6.0]
[1643558519294,35.84950699,95.198,95.14,15.767]
[1643558519496,35.84950699,95.198,95.111,24.28138839]
[1643558519695,44.66950699,95.198,95.112,23.9893]
[1643558521298,15.772,95.19,95.113,0.25]
[1643558521498,15.772,95.19,95.112,23.9893]
[1643558521695,44.66950699,95.198,95.106,1.44038839]
[1643558521696,0.25,95.189,95.106,1.44038839]
[1643558521899,3.20669142,95.189,95.104,1.44038839]
[1643558522096,2.95669142,95.188,95.096,1.44038839]
[1643558522299,0.25,95.187,95.093,1.44038839]
[1643558522496,0.25,95.187,95.095,1.44038839]
[1643558522896,15.774,95.18,95.095,1.44038839]
[1643558523297,0.25,95.179,95.095,1.44038839]
[1643558523498,15.14,95.17,95.095,1.44038839]
[1643558523696,15.14,95.17,95.064,30.61307487]
[1643558523697,38.30574039,95.169,95.091,1.44038839]
[1643558523899,63.32394039,95.169,95.071,1.44038839]
[1643558524099,66.28063181,95.169,95.068,1.44038839]
[1643558524298,2.95669142,95.168,95.068,1.44038839]
[1643558524799,0.25,95.167,95.069,0.25]
[1643558524999,15.778,95.16,95.067,1.44038839]
[1643558525200,15.14,95.15,95.068,0.25]
[1643558525400,0.25,95.149,95.066,0.25]
[1643558525898,105.15,95.149,95.066,0.25]
[1643558526098,115.44,95.149,95.066,0.25]
[1643558526902,15.784,95.13,95.066,0.25]
[1643558527104,15.14,95.14,95.075,6.0]
[1643558527303,41.86550448,95.139,95.076,22.8309]
[1643558527803,0.25,95.138,95.076,22.8309]
[1643558528205,41.86550448,95.139,95.076,22.8309]
[1643558528405,41.86550448,95.139,95.086,6.0]
[1643558528805,41.86550448,95.139,95.087,0.25]
[1643558529506,15.14,95.17,95.087,0.25]
[1643558529507,30.915,95.17,95.09,15.776]
[1643558529706,30.915,95.17,95.091,24.4644]
[1643558529907,0.25,95.169,95.091,24.7144]
[1643558530208,0.25,95.169,95.091,24.4644]
[1643558530408,45.27351439,95.168,95.091,24.4644]
[1643558530609,15.776,95.16,95.091,24.4644]
[1643558530807,0.25,95.159,95.092,0.25]
[1643558531611,15.778,95.15,95.092,0.25]
[1643558531807,0.25,95.149,95.092,0.25]
[1643558532207,0.25,95.149,95.076,1.44038839]
[1643558532408,0.25,95.149,95.051,23.3114]
[1643558532409,2.95669142,95.148,95.077,0.25]
[1643558532709,107.85669142,95.148,95.077,0.25]
[1643558532909,24.2925,95.147,95.077,0.25]
[1643558533107,15.78,95.14,95.077,0.25]
[1643558533307,44.61715888,95.139,95.077,0.25]
[1643558533507,44.61715888,95.139,95.072,1.44038839]
[1643558533707,44.61715888,95.139,95.063,23.5141]
[1643558533708,0.25,95.138,95.063,23.5141]
[1643558534508,15.782,95.13,95.073,6.0]
[1643558534709,44.61715888,95.139,95.073,6.0]
[1643558535008,44.61715888,95.139,95.078,6.0]
[1643558535211,44.61715888,95.139,95.074,24.7633]
[1643558535411,44.61715888,95.139,95.079,6.0]
[1643558535610,0.25,95.138,95.074,24.5133]
[1643558536614,8.8,95.138,95.074,24.5133]
[1643558536815,8.8,95.138,95.075,0.25]
[1643558537012,0.25,95.138,95.074,24.5133]
[1643558537212,0.25,95.138,95.075,0.25]
[1643558537712,105.15,95.138,95.074,24.5133]
[1643558537913,105.15,95.138,95.05,15.783]
[1643558537914,104.9,95.129,95.05,15.783]
[1643558538112,104.9,95.129,95.023,113.8]
[1643558538113,104.9,95.129,95.037,1.44038839]
[1643558538313,3.20669142,95.128,95.034,1.44038839]
[1643558538514,0.25,95.128,95.034,1.44038839]
[1643558538717,0.25,95.128,95.035,1.44038839]
[1643558538920,0.25,95.128,95.05,15.782]
[1643558539114,0.25,95.128,95.052,24.7065]
[1643558539320,0.25,95.128,95.052,24.9565]
[1643558540715,15.784,95.12,95.052,24.9565]
[1643558540915,0.25,95.119,95.052,24.9565]
[1643558541924,38.14692146,95.109,95.052,24.9565]
[1643558542315,0.25,95.108,95.052,24.9565]
[1643558543317,105.15,95.108,95.052,24.9565]
[1643558543518,0.25,95.108,95.052,24.7065]
[1643558543720,15.787,95.1,95.052,24.7065]
[1643558543919,0.25,95.108,95.052,24.7065]
[1643558543920,0.25,95.108,95.053,0.25]
[1643558544121,0.25,95.099,95.053,0.25]
[1643558544320,0.25,95.108,95.053,0.25]
[1643558544726,0.25,95.108,95.052,24.7065]
[1643558545523,0.25,95.108,95.033,1.44038839]
[1643558545722,0.25,95.108,95.028,1.44038839]
[1643558545923,0.25,95.108,95.027,1.44038839]
[1643558546122,0.25,95.108,95.026,1.44038839]
[1643558546527,0.25,95.108,95.024,24.1998]
[1643558546528,0.25,95.108,95.029,1.44038839]
[1643558547227,0.25,95.108,95.03,0.25]
[1643558547426,0.25,95.108,95.039,6.0]
[1643558547624,0.25,95.108,95.04,24.3117]
[1643558548525,15.79,95.1,95.04,24.3117]
[1643558548924,0.25,95.099,95.04,24.3117]
[1643558550149,0.25,95.108,95.035,1.44038839]
[1643558550349,2.95669142,95.098,95.03,1.44038839]
[1643558550549,2.95669142,95.098,95.024,1.44038839]
[1643558550749,0.25,95.097,95.024,1.44038839]
[1643558550949,283.774335,95.096,95.024,1.44038839]
[1643558551148,283.774335,95.096,95.021,1.44038839]
[1643558551349,3.20669142,95.095,95.022,1.44038839]
[1643558551552,281.71056,95.094,95.018,1.44038839]
[1643558551749,281.71056,95.094,94.981,22.9575]
[1643558551750,43.53228848,95.079,94.993,1.44038839]
[1643558551949,43.53228848,95.079,94.99,1.44038839]
[1643558552149,43.53228848,95.079,94.981,22.9575]
[1643558552150,0.25,95.078,94.991,1.44038839]
[1643558552354,15.798,95.07,94.991,1.44038839]
[1643558552650,15.798,95.07,94.981,22.9575]
[1643558552651,15.798,95.07,94.99,1.44038839]
[1643558552850,0.25,95.069,94.993,1.44038839]
[1643558553051,0.25,95.069,95.0,21.12053239]
[1643558553350,0.25,95.069,95.0,19.680144]
[1643558553951,0.25,95.069,95.001,0.25]
[1643558554151,0.25,95.069,95.0,19.680144]
[1643558555250,105.15,95.069,95.0,19.680144]
[1643558556250,105.15,95.069,95.001,24.5585]
[1643558556650,105.15,95.069,95.0,19.680144]
[1643558557664,108.10669142,95.069,95.0,19.680144]
[1643558557861,105.15,95.069,95.0,19.680144]
[1643558558063,105.15,95.069,95.0,19.180144]
[1643558558562,2.95669142,95.068,95.0,19.180144]
[1643558558964,0.25,95.067,95.0,19.180144]
[1643558559363,2.95669142,95.066,95.0,19.180144]
[1643558559862,0.25,95.065,95.0,19.180144]
[1643558560062,15.14,95.06,95.0,19.180144]
[1643558560267,0.25,95.059,95.0,19.180144]
[1643558561367,105.15,95.059,95.0,19.180144]
[1643558562876,285.81432,95.058,94.956,0.2]
[1643558563070,35.45833423,95.056,94.953,0.2]
[1643558563269,0.25,95.055,94.953,0.1]
[1643558563469,0.25,95.055,94.933,1.44038839]
[1643558563669,3.20669142,95.055,94.934,1.44038839]
[1643558563869,2.95669142,95.054,94.935,1.44038839]
[1643558564169,35.45833423,95.056,94.947,1.44038839]
[1643558564369,35.45833423,95.056,94.951,1.44038839]
[1643558564569,35.45833423,95.056,94.97,15.794]
[1643558564770,35.45833423,95.056,94.971,24.5485]
[1643558564970,35.45833423,95.056,94.971,24.2985]
[1643558565371,0.25,95.055,94.971,24.2985]
[1643558565577,0.25,95.055,94.972,0.25]
[1643558565768,35.45833423,95.056,94.972,2.53928059]
[1643558565971,35.45833423,95.056,94.981,6.0]
[1643558566170,15.14,95.1,94.982,6.0]
[1643558566370,15.14,95.1,94.983,47.0607]
[1643558566569,104.9,95.094,94.983,47.0607]
[1643558566768,104.9,95.094,94.993,6.0]
[1643558566970,26.31319142,95.093,94.994,24.5882]
[1643558567169,139.89714372,95.092,94.994,24.5882]
[1643558567369,139.89714372,95.092,94.995,0.25]
[1643558567571,15.14,95.09,94.995,0.25]
[1643558567770,0.25,95.089,94.995,0.25]
[1643558568177,0.25,95.089,95.004,6.0]
[1643558568371,0.25,95.089,95.005,23.335]
[1643558568772,0.25,95.089,95.006,0.25]
[1643558568970,0.25,95.091,95.006,0.25]
[1643558569272,23.7905,95.091,95.006,0.25]
[1643558570471,2.95669142,95.09,94.983,23.1862]
[1643558570674,18.09669142,95.09,94.984,24.879]
[1643558570872,0.25,95.089,94.984,25.129]
[1643558571073,108.10669142,95.089,94.984,25.129]
[1643558571272,108.10669142,95.089,94.994,6.0]
[1643558571473,2.95669142,95.088,94.984,25.129]
[1643558571972,0.25,95.087,94.984,25.129]
[1643558572372,2.95669142,95.086,94.984,25.129]
[1643558572773,0.25,95.085,94.984,25.129]
[1643558573079,2.95669142,95.086,94.984,25.129]
[1643558573377,2.95669142,95.084,94.984,25.129]
[1643558574272,0.25,95.083,94.984,25.129]
[1643558574672,2.95669142,95.082,94.984,25.129]
[1643558574874,0.25,95.081,94.984,25.129]
[1643558575275,2.95669142,95.08,94.984,25.129]
[1643558575680,0.25,95.079,94.984,25.129]
[1643558576075,2.95669142,95.078,94.984,25.129]
[1643558576375,104.9,95.076,94.984,25.129]
[1643558576675,15.14,95.07,94.984,25.129]
[1643558576877,105.15,95.069,94.984,25.129]
[1643558577779,105.15,95.069,94.985,0.25]
[1643558579383,105.15,95.069,94.994,6.0]
[1643558579582,105.15,95.069,94.995,24.5768]
[1643558579782,105.15,95.069,94.995,24.8268]
[1643558580788,0.25,95.069,94.995,24.8268]
[1643558581089,0.25,95.069,95.005,6.0]
[1643558581289,0.25,95.076,95.006,23.0118]
[1643558581489,105.15,95.076,95.006,23.0118]
[1643558582089,105.15,95.076,95.006,22.7618]
[1643558582290,105.15,95.076,95.007,0.25]
[1643558584706,104.9,95.076,95.007,0.25]
[1643558586211,0.25,95.075,95.007,0.25]
[1643558593512,104.9,95.076,95.007,0.25]
[1643558593714,1.44839037,95.092,95.01,15.788]
[1643558593919,1.44839037,95.108,95.018,1.44038839]
[1643558594115,1.44839037,95.125,95.034,1.44038839]
[1643558594414,1.44839037,95.136,95.045,1.44038839]
[1643558594618,40.35312996,95.135,95.055,6.0]
[1643558594813,40.35312996,95.135,95.056,24.4914]
[1643558595013,40.35312996,95.135,95.06,15.781]
[1643558595213,0.25,95.134,95.06,15.781]
[1643558595414,0.25,95.134,95.061,0.25]
[1643558595614,0.25,95.134,95.066,6.0]
[1643558595815,0.25,95.134,95.067,0.25]
[1643558596013,0.25,95.134,95.067,25.0795]
[1643558597015,0.25,95.134,95.07,15.779]
[1643558597415,0.25,95.134,95.071,0.25]
[1643558598616,0.25,95.134,95.08,15.777]
[1643558598816,0.25,95.134,95.081,0.25]
[1643558599020,1.44839037,95.168,95.081,0.25]
[1643558599220,1.44839037,95.168,95.081,2.54869317]
[1643558599418,1.44839037,95.181,95.081,0.25]
[1643558599719,104.9,95.188,95.11,15.772]
[1643558600019,33.38728713,95.186,95.111,24.1941]
[1643558600219,33.38728713,95.186,95.111,24.4441]
[1643558600818,33.38728713,95.186,95.12,15.77]
[1643558601218,33.38728713,95.186,95.121,0.25]
[1643558602817,0.25,95.185,95.121,0.25]
[1643558603018,0.25,95.185,95.13,15.769]
[1643558603417,0.25,95.185,95.112,0.25]
[1643558603618,0.25,95.185,95.122,0.25]
[1643558603818,0.25,95.185,95.121,6.0]
[1643558604224,0.25,95.185,95.122,0.25]
[1643558605519,105.15,95.185,95.1,15.774]
[1643558605720,104.9,95.183,95.081,24.9891]
[1643558605920,16.109541,95.182,95.081,24.9891]
[1643558606119,0.25,95.182,95.081,24.9891]
[1643558606518,2.95669142,95.181,95.081,24.9891]
[1643558606919,16.028,95.18,95.081,24.9891]
[1643558607120,104.9,95.179,95.093,24.2834]
[1643558607320,0.25,95.178,95.093,24.2834]
[1643558608521,0.25,95.18,95.093,24.2834]
[1643558609121,104.9,95.179,95.093,24.2834]
[1643558609324,0.25,95.178,95.093,24.2834]
[1643558610123,15.14,95.17,95.093,24.2834]
[1643558610426,33.93702553,95.169,95.093,24.2834]
[1643558611023,104.9,95.168,95.093,24.2834]
[1643558611425,0.25,95.167,95.093,24.2834]
[1643558611830,0.25,95.167,95.094,0.25]
[1643558612525,0.25,95.168,95.093,24.2834]
[1643558612925,105.15,95.168,95.093,24.2834]
[1643558613727,0.25,95.168,95.093,24.2834]
[1643558613928,25.175393,95.167,95.093,24.2834]
[1643558614135,2.95669142,95.167,95.093,24.2834]
[1643558614332,0.25,95.166,95.048,46.0937]
[1643558614529,15.14,95.16,95.048,46.0937]
[1643558614730,15.14,95.16,95.049,0.25]
[1643558614933,0.25,95.159,95.05,15.781]
[1643558615132,27.05739142,95.159,95.05,15.781]
[1643558615430,2.95669142,95.158,95.051,0.25]
[1643558615832,0.25,95.157,95.051,0.25]
[1643558616332,3.20669142,95.157,95.051,0.25]
[1643558616836,15.783,95.15,95.051,0.25]
[1643558617034,15.14,95.14,95.049,0.25]
[1643558617333,77.673733,95.139,95.048,46.0937]
[1643558617533,80.63042442,95.139,95.048,46.0937]
[1643558617734,87.151276,95.138,95.048,46.0937]
[1643558617934,41.97807002,95.129,95.048,46.0937]
[1643558618234,104.9,95.128,95.048,46.0937]
[1643558618435,105.15,95.128,95.049,0.25]
[1643558625842,104.9,95.126,95.018,0.25]
[1643558626041,104.9,95.126,95.013,46.1488]
[1643558626042,104.9,95.126,95.027,6.0]
[1643558626244,0.25,95.125,95.027,6.0]
[1643558626441,0.25,95.125,95.03,15.785]
[1643558626643,0.25,95.125,95.04,6.0]
[1643558626843,0.25,95.125,95.041,22.9248]
[1643558627042,0.25,95.125,95.051,6.0]
[1643558627245,0.25,95.125,95.017,2.29823555]
[1643558627442,104.9,95.109,95.017,2.29823555]
[1643558627643,43.98390593,95.108,95.018,0.25]
[1643558627844,104.9,95.107,95.018,0.25]
[1643558628044,104.9,95.107,95.017,2.29823555]
[1643558628243,0.25,95.106,95.017,2.29823555]
[1643558629046,0.25,95.106,95.02,15.787]
[1643558629446,0.25,95.106,95.021,0.25]
[1643558630246,0.25,95.106,95.017,2.29823555]
[1643558630447,0.25,95.106,95.014,22.8364]
[1643558630647,2.95669142,95.105,95.014,22.8364]
[1643558630849,0.25,95.104,95.014,22.8364]
[1643558631052,15.14,95.1,95.014,22.8364]
[1643558631449,105.15,95.099,95.014,22.8364]
[1643558631850,104.9,95.097,95.014,22.8364]
[1643558632249,0.25,95.096,95.015,0.25]
[1643558640284,104.9,95.097,95.015,0.25]
[1643558640481,0.2,95.464,95.015,0.25]
[1643558640482,1.44839037,95.117,95.016,2.29823555]